bitfinex-derivatives/quotes_SOLF0:USTF0_20250428
["timestamp","ask_amount","ask_price","bid_price","bid_amount"]
[1745805119623,6.893,145.02,144.99,6.894]
[1745805120125,41.2727388,145.03,144.93,29.16]
[1745805120126,6.8933,145.01,144.93,29.16]
[1745805120521,41.2727388,145.03,144.93,29.16]
[1745805120721,48.1650388,145.03,144.93,29.16]
[1745805120922,16.0489388,145.06,144.93,41.2527388]
[1745805121122,45.2289388,145.06,145.02,6.8926]
[1745805121321,52.1198388,145.06,145.02,6.8926]
[1745805121524,45.2289388,145.06,144.98,29.18]
[1745805121726,45.2289388,145.06,145.01,6.8928]
[1745805121926,45.2289388,145.06,144.98,29.18]
[1745805122330,45.2289388,145.06,145.02,6.8924]
[1745805122628,52.1200388,145.06,145.02,6.8924]
[1745805123623,2.01,145.1,145.02,29.18]
[1745805123825,41.2727388,145.12,145.02,29.18]
[1745805125229,6.8906,145.07,145.02,36.0726]
[1745805125427,6.8906,145.07,145.02,29.18]
[1745805125934,6.8906,145.07,145.03,6.892]
[1745805126534,6.8909,145.06,145.02,36.0725]
[1745805127531,6.8904,145.07,145.03,6.8921]
[1745805127831,12.0927388,145.09,145.03,6.8921]
[1745805128033,6.8908,145.06,145.02,36.0725]
[1745805128826,12.0927388,145.09,145.04,6.8917]
[1745805130129,41.2727388,145.12,145.02,29.18]
[1745805130332,29.18,145.12,145.03,1.9574]
[1745805130523,29.18,145.12,145.03,3.9405]
[1745805131233,6.8885,145.11,145.07,6.8903]
[1745805131636,36.74276952,145.12,145.03,11.50326952]
[1745805131934,6.8886,145.11,145.06,6.8904]
[1745805132435,6.8889,145.1,145.06,6.8904]
[1745805132734,36.74276952,145.12,145.05,6.8911]
[1745805133435,6.8893,145.1,145.05,6.8911]
[1745805133735,6.8898,145.08,145.03,16.41206952]
[1745805134036,7.56276952,145.1,145.03,1.9574]
[1745805134435,6.8899,145.08,145.04,6.8914]
[1745805134938,7.56276952,145.1,145.04,6.8914]
[1745805135836,6.8895,145.09,145.04,6.8914]
[1745805136538,6.8895,145.09,145.05,6.8912]
[1745805136738,36.74276952,145.12,145.03,9.52016952]
[1745805137233,36.74276952,145.12,145.07,6.8899]
[1745805137440,29.18,145.12,145.05,7.56276952]
[1745805137640,2.0235,145.13,145.06,29.18]
[1745805137840,6.888,145.12,145.08,6.8895]
[1745805138739,6.888,145.12,145.09,6.8892]
[1745805139037,8.9111,145.13,145.09,6.8892]
[1745805139635,6.8879,145.12,145.09,6.8892]
[1745805139841,2.0235,145.13,145.08,6.8897]
[1745805140040,2.0235,145.13,145.06,29.18]
[1745805140340,6.888,145.12,145.08,6.8898]
[1745805140836,6.888,145.12,145.09,6.8893]
[1745805141136,2.0235,145.13,145.06,29.18]
[1745805141435,7.56276952,145.16,145.11,6.8881]
[1745805141643,29.12,145.19,145.11,7.56276952]
[1745805141837,4.58538886,145.18,145.13,7.56276952]
[1745805142033,2.12,145.2,145.16,6.8857]
[1745805142443,9.0043,145.2,145.16,6.8857]
[1745805142643,31.2104,145.22,145.15,7.56276952]
[1745805142839,9.48286952,145.24,145.15,7.56276952]
[1745805143038,4.58713587,145.23,145.15,7.56276952]
[1745805143435,6.8832,145.22,145.17,6.8854]
[1745805144141,1.9201,145.24,145.18,6.885]
[1745805144339,29.12,145.25,145.16,12.08122288]
[1745805144538,4.2104,145.26,145.17,1.9322]
[1745805144739,4.2104,145.26,145.18,29.1]
[1745805144936,12.08122288,145.25,145.14,29.1]
[1745805145140,12.08122288,145.22,145.14,29.1]
[1745805145846,12.08122288,145.22,145.13,6.887]
[1745805146139,6.885,145.19,145.14,6.8869]
[1745805146547,12.08122288,145.22,145.12,2.1111]
[1745805146744,6.8858,145.17,145.12,2.1111]
[1745805147847,6.8852,145.18,145.12,2.1111]
[1745805148449,6.8847,145.19,145.14,6.8866]
[1745805149248,6.8851,145.18,145.14,6.8866]
[1745805150649,6.8847,145.19,145.14,6.8866]
[1745805152250,6.8852,145.18,145.14,6.8866]
[1745805152852,6.8852,145.18,145.15,6.8865]
[1745805153052,6.8846,145.19,145.15,6.8865]
[1745805154550,6.8851,145.18,145.14,6.8868]
[1745805155552,6.8847,145.19,145.15,6.8865]
[1745805155851,12.08122288,145.22,145.12,2.1111]
[1745805157252,6.8854,145.18,145.14,6.8868]
[1745805158048,29.1,145.2,145.13,6.887]
[1745805158352,12.08122288,145.19,145.11,29.1]
[1745805158546,16.10112288,145.19,145.11,29.1]
[1745805158750,6.8861,145.16,145.11,29.1]
[1745805159454,6.8861,145.16,145.12,6.8877]
[1745805160551,6.8857,145.17,145.13,6.8874]
[1745805162053,4.0199,145.19,145.11,29.1]
[1745805163255,10.9048,145.19,145.15,6.8862]
[1745805164755,8.9023,145.19,145.15,6.8862]
[1745805167855,38.59844397,145.23,145.15,29.1]
[1745805168058,7.55324397,145.21,145.15,29.1]
[1745805168548,7.55324397,145.21,145.15,35.9865]
[1745805168953,6.8851,145.18,145.15,35.9865]
[1745805170158,6.8848,145.19,145.15,35.9865]
[1745805172559,6.8851,145.18,145.15,35.9865]
[1745805172962,6.8851,145.18,145.15,6.8865]
[1745805173462,7.55324397,145.19,145.12,31.0155]
[1745805173859,7.55324397,145.19,145.12,35.9277]
[1745805174061,7.55324397,145.17,145.12,35.9277]
[1745805174261,7.55324397,145.15,145.09,29.04]
[1745805174759,14.44004397,145.15,145.09,29.04]
[1745805175161,14.44004397,145.15,145.11,6.8881]
[1745805176659,8.9483,145.17,145.09,36.59324397]
[1745805176960,2.0627,145.17,145.09,36.59324397]
[1745805177558,2.0627,145.17,145.11,7.55324397]
[1745805178565,8.9484,145.17,145.13,6.8871]
[1745805181166,8.9484,145.17,145.14,6.8869]
[1745805181466,7.55324397,145.2,145.13,29.04]
[1745805181767,7.55324397,145.2,145.16,6.8859]
[1745805182064,38.62564397,145.22,145.17,6.8853]
[1745805182256,38.62564397,145.22,145.14,29.04]
[1745805182461,9.58564397,145.22,145.14,29.04]
[1745805182658,7.55324397,145.2,145.14,29.04]
[1745805183769,6.8849,145.19,145.15,6.8863]
[1745805183968,7.55324397,145.2,145.14,29.04]
[1745805184469,14.43764397,145.2,145.16,6.8857]
[1745805185369,6.8846,145.19,145.16,6.8857]
[1745805185768,6.8846,145.19,145.15,6.8862]
[1745805188971,14.43754397,145.2,145.16,6.886]
[1745805191670,14.43754397,145.2,145.17,6.8855]
[1745805192971,6.8843,145.2,145.17,6.8855]
[1745805193267,38.62564397,145.22,145.19,6.8845]
[1745805193572,2.0324,145.22,145.19,6.8845]
[1745805195183,8.9156,145.22,145.18,6.8849]
[1745805195778,6.8837,145.21,145.13,4.0584]
[1745805196077,7.55324397,145.16,145.06,7.55324397]
[1745805196284,7.55324397,145.14,145.09,29.04]
[1745805196483,14.44034397,145.14,145.1,6.8885]
[1745805196679,7.55324397,145.14,145.09,29.04]
[1745805196983,7.55324397,145.14,145.11,6.8881]
[1745805197284,4.82767587,145.13,145.09,29.04]
[1745805197484,7.55324397,145.16,145.09,29.04]
[1745805197679,4.82679701,145.15,145.09,29.04]
[1745805197984,4.82827843,145.14,145.09,29.04]
[1745805198283,4.82827843,145.13,145.12,6.8879]
[1745805198483,7.55324397,145.18,145.1,7.55324397]
[1745805198784,4.82962461,145.17,145.1,7.55324397]
[1745805199083,4.82962461,145.16,145.14,6.8867]
[1745805199289,4.82962461,145.15,145.1,7.55324397]
[1745805199483,4.82962461,145.14,145.13,6.8873]
[1745805199682,4.83066777,145.14,145.13,6.8873]
[1745805200584,6.8859,145.17,145.13,6.8873]
[1745805200777,11.71457158,145.16,145.13,6.8873]
[1745805200975,4.82857158,145.15,145.13,6.8873]
[1745805201277,7.55324397,145.18,145.13,6.8873]
[1745805201278,6.8856,145.17,145.13,6.8873]
[1745805201478,4.82769915,145.16,145.14,6.8869]
[1745805201674,4.82678744,145.15,145.14,6.8869]
[1745805202879,4.82678744,145.15,145.13,6.8873]
[1745805203080,7.55324397,145.19,145.13,6.8873]
[1745805203285,4.8271923,145.18,145.13,28.98]
[1745805203485,4.8271923,145.17,145.13,28.98]
[1745805203784,9.56774397,145.21,145.13,28.98]
[1745805203978,6.8854,145.18,145.14,6.8868]
[1745805204179,4.82753254,145.17,145.13,28.98]
[1745805204377,4.82753254,145.16,145.13,28.98]
[1745805204581,6.8848,145.19,145.13,28.98]
[1745805204890,4.82747575,145.18,145.13,28.98]
[1745805205185,4.82747575,145.17,145.13,28.98]
[1745805205386,6.8848,145.19,145.13,28.98]
[1745805205591,11.71274656,145.18,145.15,6.8864]
[1745805205787,4.82764656,145.17,145.15,6.8864]
[1745805205983,4.82764656,145.16,145.15,6.8864]
[1745805206484,6.8848,145.19,145.15,6.8864]
[1745805206684,4.82771429,145.18,145.14,7.55324397]
[1745805206992,31.0114,145.26,145.16,7.55324397]
[1745805207190,4.82923552,145.25,145.22,6.8828]
[1745805207385,4.82923552,145.24,145.22,6.8828]
[1745805207587,4.82923552,145.23,145.22,6.8828]
[1745805208191,36.53324397,145.29,145.22,6.8828]
[1745805208392,4.70938941,145.28,145.22,6.8828]
[1745805208589,11.5879354,145.27,145.22,6.8828]
[1745805208790,4.7071354,145.26,145.23,6.8826]
[1745805208983,4.7071354,145.25,145.23,6.8826]
[1745805209182,4.7071354,145.24,145.21,28.98]
[1745805209382,7.55324397,145.29,145.21,28.98]
[1745805209583,4.70555944,145.28,145.21,28.98]
[1745805209790,4.70555944,145.27,145.21,28.98]
[1745805209989,4.70555944,145.26,145.21,28.98]
[1745805210184,4.70555944,145.25,145.21,28.98]
[1745805210484,6.8819,145.25,145.21,35.8636]
[1745805210796,6.8814,145.26,145.22,6.8832]
[1745805211096,4.70358398,145.25,145.22,6.8832]
[1745805211395,6.8814,145.26,145.21,28.98]
[1745805211396,7.55324397,145.29,145.21,28.98]
[1745805211695,4.70157247,145.28,145.21,35.8635]
[1745805211895,4.70157247,145.27,145.21,35.8635]
[1745805212095,4.70157247,145.26,145.21,35.8635]
[1745805212297,4.70157247,145.25,145.21,28.98]
[1745805212499,4.70157247,145.24,145.21,28.98]
[1745805212700,7.55324397,145.27,145.21,28.98]
[1745805212900,4.70221917,145.26,145.21,28.98]
[1745805213199,4.70221917,145.25,145.21,28.98]
[1745805213401,42.61964397,145.3,145.21,28.98]
[1745805213602,4.70119846,145.29,145.21,28.98]
[1745805213800,4.70119846,145.28,145.21,28.98]
[1745805214001,11.58229846,145.27,145.23,6.8823]
[1745805214199,4.70119846,145.26,145.21,28.98]
[1745805214398,42.61964397,145.3,145.21,28.98]
[1745805214599,6.8813,145.26,145.22,6.883]
[1745805215098,6.8825,145.24,145.21,28.98]
[1745805216202,7.55324397,145.26,145.21,28.98]
[1745805216401,4.6967136,145.25,145.18,28.96]
[1745805216599,4.6967136,145.24,145.18,28.96]
[1745805216798,36.51324397,145.26,145.18,28.96]
[1745805217098,4.6957545,145.25,145.18,28.96]
[1745805217300,4.6957545,145.24,145.18,28.96]
[1745805217600,11.5787545,145.23,145.19,6.8845]
[1745805217803,6.883,145.23,145.19,6.8845]
[1745805217999,6.883,145.23,145.18,28.96]
[1745805218196,6.883,145.23,145.18,35.8449]
[1745805218400,6.883,145.23,145.18,28.96]
[1745805218594,36.51324397,145.26,145.18,28.96]
[1745805218894,4.69532847,145.25,145.18,28.96]
[1745805219103,6.8827,145.23,145.19,6.8844]
[1745805219303,36.51324397,145.26,145.18,28.96]
[1745805219597,4.69517099,145.25,145.18,28.96]
[1745805219800,6.8831,145.23,145.19,6.8845]
[1745805220199,6.8824,145.24,145.18,35.8449]
[1745805220401,36.51324397,145.26,145.18,35.8449]
[1745805220703,4.69569183,145.25,145.18,28.96]
[1745805220901,6.883,145.23,145.19,6.8843]
[1745805224207,6.8824,145.24,145.2,6.8839]
[1745805224401,7.55324397,145.28,145.18,36.51324397]
[1745805224708,4.69757702,145.27,145.2,7.55324397]
[1745805224909,4.69757702,145.26,145.2,7.55324397]
[1745805225103,7.55324397,145.28,145.2,7.55324397]
[1745805225299,4.69767858,145.27,145.2,7.55324397]
[1745805225507,4.69767858,145.26,145.2,7.55324397]
[1745805225807,6.8814,145.26,145.2,7.55324397]
[1745805226007,7.55324397,145.28,145.2,7.55324397]
[1745805226207,4.69726112,145.27,145.2,7.55324397]
[1745805226504,12.25050509,145.26,145.18,36.51324397]
[1745805226804,4.69726112,145.25,145.18,36.51324397]
[1745805227106,6.8819,145.25,145.21,6.8832]
[1745805227508,6.8819,145.25,145.18,36.51324397]
[1745805227708,28.96,145.29,145.2,7.55324397]
[1745805227904,6.8814,145.26,145.22,6.883]
[1745805228206,6.8814,145.26,145.22,28.96]
[1745805228406,6.8814,145.26,145.23,6.8826]
[1745805231305,6.8809,145.27,145.23,6.8826]
[1745805231511,28.96,145.29,145.22,28.96]
[1745805231706,4.69176393,145.28,145.22,28.96]
[1745805231907,13.63964397,145.3,145.22,36.51324397]
[1745805232207,4.69175391,145.29,145.22,36.51324397]
[1745805232608,4.69175391,145.29,145.24,6.8817]
[1745805232810,9.48154397,145.31,145.24,6.8817]
[1745805233010,4.69127316,145.3,145.24,6.8817]
[1745805233310,6.8808,145.28,145.24,6.8817]
[1745805233612,7.55324397,145.27,145.22,28.96]
[1745805234009,7.55324397,145.27,145.19,28.9]
[1745805234210,6.882,145.25,145.21,6.8836]
[1745805234512,7.55324397,145.27,145.19,28.9]
[1745805234809,4.68948743,145.26,145.19,28.9]
[1745805235112,6.8825,145.24,145.2,6.8838]
[1745805236512,6.8827,145.23,145.2,6.8838]
[1745805239612,6.8832,145.22,145.19,35.7844]
[1745805239810,7.55324397,145.23,145.19,28.9]
[1745805240014,7.55324397,145.23,145.16,28.9]
[1745805240515,7.55324397,145.23,145.15,1.9582]
[1745805240815,6.8839,145.21,145.18,6.8847]
[1745805241013,7.55324397,145.23,145.18,6.8847]
[1745805241411,11.67114397,145.27,145.18,7.55324397]
[1745805241611,4.68869151,145.26,145.18,7.55324397]
[1745805241807,11.67114397,145.27,145.18,7.55324397]
[1745805242011,6.8825,145.24,145.2,6.8838]
[1745805243719,6.8827,145.23,145.2,6.8838]
[1745805243915,4.1179,145.27,145.18,7.55324397]
[1745805244115,7.55324397,145.23,145.16,36.45324397]
[1745805244321,7.55324397,145.2,145.13,28.9]
[1745805244518,7.55324397,145.2,145.15,6.8862]
[1745805244720,6.885,145.19,145.15,6.8862]
[1745805245619,6.8851,145.18,145.15,6.8862]
[1745805246421,6.8847,145.19,145.15,6.8862]
[1745805246617,7.55324397,145.2,145.15,6.8862]
[1745805246814,7.55324397,145.18,145.13,28.9]
[1745805247020,4.70065707,145.17,145.09,36.45324397]
[1745805247413,4.70065707,145.17,145.11,7.55324397]
[1745805247823,6.886,145.16,145.13,6.8871]
[1745805250427,6.8857,145.17,145.13,6.8871]
[1745805251027,6.8851,145.18,145.14,6.8866]
[1745805251224,31.015,145.19,145.13,7.55324397]
[1745805251225,28.9,145.19,145.13,7.55324397]
[1745805251425,4.70892976,145.18,145.11,7.55324397]
[1745805252118,6.8856,145.17,145.13,6.8871]
[1745805254235,6.8861,145.16,145.13,6.8871]
[1745805254831,6.8857,145.17,145.14,6.8869]
[1745805255031,6.8857,145.17,145.11,7.55324397]
[1745805256432,6.8857,145.17,145.13,6.8871]
[1745805257533,6.8857,145.17,145.14,6.8868]
[1745805257736,6.8852,145.18,145.14,6.8868]
[1745805257940,7.55324397,145.2,145.15,6.8864]
[1745805258136,4.69869582,145.19,145.15,6.8864]
[1745805258334,11.58329582,145.19,145.15,6.8864]
[1745805258537,6.8846,145.19,145.15,6.8864]
[1745805259737,7.55324397,145.2,145.13,28.9]
[1745805259939,4.69721088,145.19,145.13,28.9]
[1745805260342,11.58211088,145.19,145.15,6.8864]
[1745805260639,6.8849,145.19,145.15,6.8864]
[1745805261340,6.8852,145.18,145.14,6.8868]
[1745805261534,7.55324397,145.18,145.13,28.9]
[1745805262138,7.55324397,145.18,145.1,36.39324397]
[1745805262539,6.8859,145.17,145.12,6.8877]
[1745805262740,6.8859,145.17,145.1,36.39324397]
[1745805262942,7.55324397,145.2,145.1,36.39324397]
[1745805263241,4.69384544,145.19,145.12,7.55324397]
[1745805263441,1.9355,145.21,145.12,7.55324397]
[1745805263642,6.885,145.19,145.12,7.55324397]
[1745805263838,7.55324397,145.18,145.1,28.84]
[1745805264140,7.55324397,145.18,145.12,6.8879]
[1745805264441,36.39324397,145.18,145.1,28.84]
[1745805264643,6.8869,145.15,145.11,6.8883]
[1745805265140,36.39324397,145.18,145.1,28.84]
[1745805265643,6.8858,145.17,145.12,6.8877]
[1745805266144,6.8858,145.17,145.13,6.8873]
[1745805266443,35.7252,145.18,145.11,7.55324397]
[1745805266743,7.55324397,145.2,145.11,7.55324397]
[1745805267141,6.8849,145.19,145.15,6.8865]
[1745805267342,30.7755,145.21,145.12,7.55324397]
[1745805267546,4.6904779,145.2,145.12,7.55324397]
[1745805267739,8.8198,145.22,145.18,6.8847]
[1745805268944,6.8837,145.21,145.17,6.8854]
[1745805270344,6.8842,145.2,145.16,6.8858]
[1745805270645,7.55324397,145.2,145.15,28.84]
[1745805270845,7.55324397,145.2,145.12,36.39324397]
[1745805271347,6.8851,145.18,145.14,6.8866]
[1745805272144,6.8856,145.17,145.13,6.8873]
[1745805272740,7.55324397,145.2,145.13,6.8873]
[1745805272946,6.8868,145.15,145.12,28.84]
[1745805273146,7.55324397,145.17,145.12,28.84]
[1745805273645,6.8863,145.16,145.12,35.7276]
[1745805274237,6.8863,145.16,145.12,28.84]
[1745805274844,6.8863,145.16,145.12,35.7278]
[1745805275049,6.8863,145.16,145.12,28.84]
[1745805275840,6.8863,145.16,145.13,6.8871]
[1745805276040,6.8856,145.17,145.12,28.84]
[1745805276247,28.84,145.19,145.12,36.39324397]
[1745805276447,4.70098937,145.18,145.12,36.39324397]
[1745805277048,11.58608937,145.18,145.15,6.8861]
[1745805277346,6.8851,145.18,145.15,6.8861]
[1745805278049,6.8851,145.18,145.14,6.8869]
[1745805278247,6.8857,145.17,145.14,6.8869]
[1745805279050,6.8852,145.18,145.15,6.8864]
[1745805279349,7.55324397,145.21,145.12,36.39324397]
[1745805279546,4.70426365,145.2,145.12,36.39324397]
[1745805279748,11.58916365,145.19,145.15,6.8862]
[1745805279946,4.70426365,145.18,145.15,6.8862]
[1745805280150,6.8849,145.19,145.12,36.39324397]
[1745805280449,11.58984994,145.18,145.15,6.8862]
[1745805280650,4.70474994,145.17,145.15,6.8862]
[1745805280846,4.70474994,145.17,145.14,6.8868]
[1745805281851,6.8851,145.18,145.14,6.8868]
[1745805282049,4.70814666,145.17,145.14,6.8868]
[1745805282350,4.70814666,145.17,145.12,36.39324397]
[1745805282351,7.55324397,145.19,145.12,28.84]
[1745805282552,4.70889739,145.18,145.12,28.84]
[1745805282852,12.26214136,145.17,145.09,30.7949]
[1745805283050,4.70889739,145.16,145.09,28.84]
[1745805283245,4.70732578,145.15,145.1,6.8886]
[1745805283449,4.70893695,145.14,145.09,28.84]
[1745805283752,4.70818263,145.13,145.09,28.84]
[1745805283954,4.70818263,145.12,145.06,38.44824397]
[1745805284151,7.55324397,145.15,145.06,38.44824397]
[1745805284351,6.8881,145.12,145.08,6.8896]
[1745805284850,4.70880304,145.11,145.08,6.8896]
[1745805285353,6.8881,145.12,145.08,6.8896]
[1745805286252,6.8885,145.11,145.08,6.8896]
[1745805287152,6.888,145.12,145.08,6.8896]
[1745805288756,4.71211369,145.11,145.08,6.8896]
[1745805288957,6.888,145.12,145.08,6.8896]
[1745805289153,4.71210328,145.11,145.08,6.8896]
[1745805289362,6.888,145.12,145.08,6.8896]
[1745805289957,6.888,145.12,145.09,6.8893]
[1745805292659,6.8884,145.11,145.08,6.8897]
[1745805293155,4.71057323,145.1,145.03,28.78]
[1745805293357,7.55324397,145.11,145.03,28.78]
[1745805293658,7.55324397,145.09,145.03,28.78]
[1745805294052,6.8904,145.07,145.04,6.8914]
[1745805294957,6.89,145.08,145.04,6.8914]
[1745805295455,6.89,145.08,145.05,6.8911]
[1745805295858,6.8895,145.09,145.03,28.78]
[1745805296055,1.9384,145.1,145.06,6.8903]
[1745805296257,7.55324397,145.15,145.06,7.55324397]
[1745805296456,6.8881,145.12,145.06,7.55324397]
[1745805297458,6.8881,145.12,145.08,6.8895]
[1745805298458,6.8886,145.11,145.07,6.8901]
[1745805299256,7.55324397,145.13,145.04,7.55324397]
[1745805299458,7.55324397,145.11,145.03,28.78]
[1745805299853,6.8898,145.08,145.05,6.8909]
[1745805300255,6.8905,145.07,145.03,28.78]
[1745805300462,7.55324397,145.09,145.03,28.78]
[1745805300657,7.55324397,145.07,145.0,526.7233]
[1745805301560,6.8906,145.07,145.03,6.8918]
[1745805302062,6.89,145.08,145.0,534.27654397]
[1745805302256,1.988,145.1,145.0,526.7233]
[1745805302456,7.55324397,145.13,145.04,7.55324397]
[1745805302657,11.58600237,145.12,145.07,6.8899]
[1745805302960,6.8883,145.12,145.07,6.8899]
[1745805303154,6.8883,145.12,145.08,6.8897]
[1745805304064,6.8883,145.12,145.09,6.8892]
[1745805304260,6.8876,145.13,145.09,6.8892]
[1745805304465,28.8,145.14,145.09,6.8892]
[1745805304759,4.69358908,145.13,145.09,6.8892]
[1745805305265,6.8879,145.12,145.09,6.8892]
[1745805306065,6.8885,145.11,145.08,6.8897]
[1745805306269,7.55324397,145.13,145.05,28.8]
[1745805306467,4.6971712,145.12,145.05,28.8]
[1745805306661,4.6971712,145.12,145.07,6.89]
[1745805306861,6.8892,145.1,145.05,28.8]
[1745805307160,6.8892,145.1,145.06,6.8906]
[1745805307362,7.55324397,145.11,145.05,28.8]
[1745805307664,4.69621365,145.1,145.05,35.6908]
[1745805307866,4.69621365,145.1,145.05,6.8908]
[1745805308165,6.8893,145.09,145.05,6.8908]
[1745805308665,7.55324397,145.11,145.05,6.8908]
[1745805308862,4.6970518,145.1,145.05,6.8908]
[1745805309063,6.8895,145.09,145.06,6.8907]
[1745805310367,6.8895,145.09,145.05,6.8912]
[1745805310567,6.8899,145.08,145.05,6.8912]
[1745805311068,6.8895,145.09,145.05,6.8912]
[1745805311970,6.8898,145.08,145.05,6.8912]
[1745805312268,7.55324397,145.11,145.05,6.8912]
[1745805313167,7.55324397,145.09,145.05,6.8912]
[1745805313372,7.55324397,145.07,144.95,36.35324397]
[1745805313568,7.55324397,145.03,144.95,28.8]
[1745805313768,6.893,145.02,144.97,6.8947]
[1745805313969,7.55324397,145.03,144.95,28.8]
[1745805314365,6.8936,145.0,144.95,35.6956]
[1745805314770,7.55324397,145.01,144.95,28.8]
[1745805314971,7.55324397,145.03,144.95,35.6959]
[1745805315268,4.69101129,145.02,144.95,35.6959]
[1745805315477,7.55324397,145.03,144.95,35.6959]
[1745805315674,6.8939,145.0,144.95,35.6959]
[1745805316571,6.8939,145.0,144.96,6.8954]
[1745805316871,6.8941,144.99,144.96,6.8954]
[1745805317171,6.8941,144.99,144.95,35.6958]
[1745805317572,6.8937,145.0,144.95,28.8]
[1745805317872,6.8937,145.0,144.96,6.8951]
[1745805318172,7.55324397,145.03,144.95,28.8]
[1745805318472,7.55324397,145.03,144.96,6.8955]
[1745805318672,7.55324397,145.03,144.95,28.8]
[1745805318968,6.8939,145.0,144.95,28.8]
[1745805319462,6.8939,145.0,144.96,6.8954]
[1745805319667,6.8941,144.99,144.95,28.8]
[1745805319863,7.55324397,145.03,144.95,35.6958]
[1745805320066,6.895,144.98,144.95,28.8]
[1745805322069,6.895,144.98,144.95,35.696]
[1745805322272,28.8,145.02,144.95,28.8]
[1745805322674,28.8,145.02,144.95,35.6958]
[1745805322675,6.8945,144.99,144.95,35.6958]
[1745805322876,28.8,145.02,144.95,35.6958]
[1745805323574,28.8,145.02,144.95,28.8]
[1745805324074,6.894,145.0,144.96,6.8955]
[1745805324271,7.55324397,145.04,144.95,36.35324397]
[1745805324676,7.55324397,145.0,144.95,28.8]
[1745805325879,6.8944,144.99,144.95,35.696]
[1745805326074,6.8944,144.99,144.95,28.8]
[1745805326273,7.55324397,145.0,144.95,28.8]
[1745805326578,6.8946,144.98,144.95,28.8]
[1745805326777,7.55324397,145.0,144.95,28.8]
[1745805327077,6.8944,144.99,144.95,35.696]
[1745805327377,7.55324397,145.0,144.95,28.8]
[1745805327677,6.895,144.97,144.95,28.8]
[1745805327878,6.895,144.97,144.93,1.9922]
[1745805328478,6.895,144.97,144.93,8.8887]
[1745805329475,6.895,144.97,144.94,6.8964]
[1745805329981,7.55324397,144.96,144.9,28.74]
[1745805330781,14.44894397,144.96,144.92,6.8971]
[1745805330972,13.59964397,145.0,144.91,7.55324397]
[1745805332282,6.8947,144.98,144.94,6.8962]
[1745805332582,13.59964397,145.0,144.94,6.8962]
[1745805332783,6.8949,144.98,144.94,6.8962]
[1745805333985,6.895,144.97,144.94,6.8962]
[1745805335189,6.895,144.97,144.93,6.8968]
[1745805335376,6.895,144.97,144.9,28.74]
[1745805335579,14.44794397,144.98,144.9,28.74]
[1745805335882,7.55324397,144.98,144.93,6.8967]
[1745805336281,7.55324397,144.98,144.9,28.74]
[1745805336487,7.55324397,145.03,144.93,7.55324397]
[1745805336688,36.29324397,145.03,144.94,30.6881]
[1745805336986,6.8939,145.0,144.96,6.8951]
[1745805337584,6.8925,145.03,144.99,6.8941]
[1745805337888,7.55324397,145.08,145.0,7.55324397]
[1745805338186,6.891,145.06,145.01,6.8928]
[1745805338685,14.44344397,145.08,145.0,7.55324397]
[1745805338886,36.29324397,145.13,145.04,7.55324397]
[1745805339090,4.68156519,145.12,145.04,7.55324397]
[1745805339288,4.68156519,145.12,145.06,6.8907]
[1745805339589,4.68156519,145.12,145.04,7.55324397]
[1745805339787,11.56976519,145.12,145.07,6.8899]
[1745805339984,38.30094397,145.13,145.04,7.55324397]
[1745805340185,6.8879,145.12,145.08,6.8896]
[1745805340787,6.8884,145.11,145.07,6.8903]
[1745805340994,7.55324397,145.11,145.03,28.74]
[1745805341287,7.55324397,145.09,145.03,28.74]
[1745805341591,7.55324397,145.11,145.03,28.74]
[1745805341889,6.8901,145.08,145.03,6.892]
[1745805342297,7.55324397,145.09,145.01,28.74]
[1745805342591,7.55324397,145.11,145.02,7.55324397]